fUST/lending_fUST_20240607
["ID","MTS","AMOUNT","RATE_DAILY","PERIOD"]
[328742670,1717759847372,-887.302845,0.0002,2]
[328742671,1717759847383,-887.302845,0.0002,2]
[328742672,1717759847392,-1392.522245,0.0002,2]
[328742673,1717759847402,-1392.522245,0.0002,2]
[328742674,1717759847411,-182.424163,0.0002,2]
[328742675,1717759847421,-182.424163,0.0002,2]
[328742676,1717759847430,-151.0,0.0002,2]
[328742677,1717759847440,-919.179594,0.0002,2]
[328742678,1717759847450,-919.179594,0.0002,2]
[328742679,1717759847460,-759.323495,0.0002,2]
[328742680,1717759847469,-151.0,0.0002,2]
[328742681,1717759847479,-759.323495,0.0002,2]
[328742682,1717759847488,-151.0,0.0002,2]
[328742683,1717759847499,-402.14926,0.0002,2]
[328742684,1717759847509,-402.14926,0.0002,2]
[328742685,1717759847519,-386.979236,0.0002,2]
[328742686,1717759847529,-151.0,0.0002,2]
[328742687,1717759847538,-386.979236,0.0002,2]
[328742688,1717759847548,-151.0,0.0002,2]
[328742689,1717759847558,-151.0,0.0002,2]
[328742690,1717759847568,-510.984127,0.0002,2]
[328742691,1717759847577,-510.984127,0.0002,2]
[328742692,1717759847586,-702.288297,0.0002,2]
[328742693,1717759847596,-702.288297,0.0002,2]
[328742694,1717759847606,-802.976192,0.0002,2]
[328742695,1717759847615,-802.976192,0.0002,2]
[328742696,1717759847625,-393.83302631,0.00021,2]
[328742697,1717759847634,-624.83328568,0.000212,2]
[328742698,1717759847644,-218.98,0.00021284,2]
[328742699,1717759847653,-259.62720593,0.00021692,2]
[328742700,1717759847663,-252.16311149,0.00021692,2]
[328742701,1717759847672,-318.97194626,0.00021692,2]
[328742702,1717759847681,-182.84648605,0.00021692,2]
[328742703,1717759847691,-355.04761646,0.00021693,2]
[328742704,1717759847700,-310.36656929,0.00021693,2]
[328742705,1717759847710,-300.7106495,0.00021693,2]
[328742706,1717759847720,-184.42856408,0.00021693,2]
[328742707,1717759847729,-658.03482534,0.00021693,2]
[328742708,1717759847739,-155.04648605,0.00021693,2]
[328742709,1717759847749,-155.16111535,0.00021693,2]
[328742710,1717759847758,-300.06554526,0.00021883,2]
[328742711,1717759847768,-154.9690062,0.00021883,2]
[328742712,1717759847777,-392.1410057,0.00021884,2]
[328742713,1717759847787,-157.46937655,0.00021884,2]
[328742714,1717759847796,-342.69880672,0.00021884,2]
[328742715,1717759847805,-281.9787458,0.00021885,2]
[328742716,1717759847815,-151.0,0.00021918,2]
[328742717,1717759847824,-565.5043112,0.00021918,2]
[328742718,1717759847833,-368.48158,0.00021918,2]
[328742719,1717759847844,-368.48158,0.00021918,2]
[328742720,1717759847854,-368.48158,0.00021918,2]
[328742721,1717759847864,-368.48158,0.00021918,2]
[328742722,1717759847874,-368.48158,0.00021918,2]
[328742723,1717759847883,-368.48158,0.00021918,2]
[328742724,1717759847892,-166.666666,0.00021918,2]
[328742725,1717759847902,-180.0,0.00022,2]
[328742726,1717759847911,-160.0,0.00022086,2]
[328742727,1717759847920,-695.81203607,0.00022099,2]
[328742728,1717759847930,-938.35106517,0.000221,2]
[328742729,1717759847939,-180.0,0.00022192,2]
[328742730,1717759847949,-1392.522245,0.00022192,2]
[328742731,1717759847958,-1392.522245,0.00022192,2]
[328742732,1717759847968,-182.424163,0.00022192,2]
[328742733,1717759847978,-182.424163,0.00022192,2]
[328742734,1717759847987,-265.950479,0.00022192,2]
[328742735,1717759847999,-919.179594,0.00022192,2]
[328742736,1717759848009,-919.179594,0.00022192,2]
[328742737,1717759848020,-759.323495,0.00022192,2]
[328742738,1717759848029,-151.0,0.00022192,2]
[328742739,1717759848039,-759.323495,0.00022192,2]
[328742740,1717759848050,-151.0,0.00022192,2]
[328742741,1717759848062,-402.14926,0.00022192,2]
[328742742,1717759848073,-402.14926,0.00022192,2]
[328742743,1717759848083,-386.979236,0.00022192,2]
[328742744,1717759848093,-151.0,0.00022192,2]
[328742745,1717759848103,-386.979236,0.00022192,2]
[328742746,1717759848114,-151.0,0.00022192,2]
[328742747,1717759848124,-151.0,0.00022192,2]
[328742748,1717759848134,-510.984127,0.00022192,2]
[328742749,1717759848144,-510.984127,0.00022192,2]
[328742750,1717759848154,-702.288297,0.00022192,2]
[328742751,1717759848163,-702.288297,0.00022192,2]
[328742752,1717759848174,-802.976192,0.00022192,2]
[328742753,1717759848184,-802.976192,0.00022192,2]
[328742754,1717759848194,-151.0,0.00022204,2]
[328742755,1717759848204,-151.0,0.00022204,2]
[328742756,1717759848213,-151.0,0.00022204,2]
[328742757,1717759848223,-887.302845,0.00022204,2]
[328742758,1717759848233,-887.302845,0.00022204,2]
[328742759,1717759848242,-924.68712363,0.00022204,2]
[328742760,1717759848255,-307.34171418,0.00022285,2]
[328742761,1717759848265,-151.0,0.00022286,2]
[328742762,1717759848275,-151.0,0.00022286,2]
[328742763,1717759848285,-151.0,0.00022286,2]
[328742764,1717759848294,-368.48158,0.00022286,2]
[328742765,1717759848304,-368.48158,0.00022286,2]
[328742766,1717759848314,-250.131838,0.00022286,2]
[328742767,1717759848324,-151.0,0.00022286,2]
[328742768,1717759848334,-151.0,0.00022286,2]
[328742769,1717759848343,-529.70963013,0.00022287,2]
[328742770,1717759848353,-166.666666,0.00022431,2]
[328742771,1717759848363,-320.0,0.00022634,2]
[328742772,1717759848374,-150.93962415,0.00022704,4]
[328742773,1717759848386,-522.502,0.00022716,2]
[328742774,1717759848396,-166.666666,0.00022944,2]
[328742775,1717759848406,-206.87686254,0.00023,2]
[328742776,1717759848416,-180.0,0.00023014,2]
[328742777,1717759848425,-1103.301613,0.000231,2]
[328742778,1717759848436,-151.0,0.00023142,5]
[328742779,1717759848445,-150.93962415,0.00023167,2]
[328742780,1717759848458,-503.07821928,0.00023182,2]
[328742781,1717759848468,-151.0,0.00023288,2]
[328742782,1717759848478,-151.0,0.00023288,2]
[328742783,1717759848488,-151.0,0.00023288,2]
[328742784,1717759848499,-151.0,0.00023288,2]
[328742785,1717759848508,-624.83328568,0.000233,2]
[328742786,1717759848518,-1000.0,0.00023357,2]
[328742787,1717759848527,-1000.0,0.0002337,2]
[328742788,1717759848536,-155.69541623,0.00023371,2]
[328742789,1717759848547,-214.53904593,0.00023371,2]
[328742790,1717759848556,-858.96653523,0.00023371,2]
[328742791,1717759848566,-357.69396712,0.00023372,2]
[328742792,1717759848576,-2111.50910737,0.00023373,2]
[328742793,1717759848586,-164.15864603,0.00023373,2]
[328742794,1717759848595,-381.69001002,0.00023374,2]
[328742795,1717759848605,-198.38404752,0.00023374,2]
[328742796,1717759848614,-154.95351395,0.00023396,2]
[328742797,1717759848624,-155.04648605,0.00023396,2]
[328742798,1717759848634,-155.20812291,0.00023397,2]
[328742799,1717759848644,-9585.05846993,0.00023398,2]
[328742800,1717759848653,-264.04146801,0.00023398,2]
[328742801,1717759848663,-155.0,0.00023398,2]
[328742802,1717759848672,-368.48158,0.00023398,2]
[328742803,1717759848682,-368.48158,0.00023398,2]
[328742804,1717759848691,-151.199888,0.00023398,2]
[328742805,1717759848701,-151.0,0.00023398,2]
[328742806,1717759848711,-151.0,0.00023398,2]
[328742807,1717759848720,-151.0,0.00023398,2]
[328742808,1717759848730,-151.0,0.00023398,2]
[328742809,1717759848739,-887.302845,0.00023398,2]
[328742810,1717759848751,-887.302845,0.00023398,2]
[328742811,1717759848759,-1392.522245,0.00023398,2]
[328742812,1717759848769,-1392.522245,0.00023398,2]
[328742813,1717759848779,-182.424163,0.00023398,2]
[328742814,1717759848788,-182.424163,0.00023398,2]
[328742815,1717759848798,-919.179594,0.00023398,2]
[328742816,1717759848808,-919.179594,0.00023398,2]
[328742817,1717759848818,-759.323495,0.00023398,2]
[328742818,1717759848827,-151.0,0.00023398,2]
[328742819,1717759848837,-759.323495,0.00023398,2]
[328742820,1717759848847,-151.0,0.00023398,2]
[328742821,1717759848856,-402.14926,0.00023398,2]
[328742822,1717759848866,-402.14926,0.00023398,2]
[328742823,1717759848876,-386.979236,0.00023398,2]
[328742824,1717759848886,-151.0,0.00023398,2]
[328742825,1717759848896,-386.979236,0.00023398,2]
[328742826,1717759848906,-151.0,0.00023398,2]
[328742827,1717759848915,-155.584144,0.00023398,2]
[328742828,1717759848925,-510.984127,0.00023398,2]
[328742829,1717759848935,-510.984127,0.00023398,2]
[328742830,1717759848945,-702.288297,0.00023398,2]
[328742831,1717759848955,-702.288297,0.00023398,2]
[328742832,1717759848965,-802.976192,0.00023398,2]
[328742833,1717759848974,-802.976192,0.00023398,2]
[328742834,1717759848984,-155.22187407,0.00023399,2]
[328742835,1717759848995,-550.9904196,0.00023399,2]
[328742836,1717759849005,-249.7778476,0.00023399,2]
[328742837,1717759849015,-1689.2063613,0.00023399,2]
[328742838,1717759849024,-34933.04483089,0.000234,2]
[328742839,1717759849124,-151.0,0.000234,2]
[328742840,1717759849134,-368.48158,0.000234,2]
[328742841,1717759849144,-368.48158,0.000234,2]
[328742842,1717759849154,-151.0,0.000234,2]
[328742843,1717759849164,-151.0,0.000234,2]
[328742844,1717759849174,-151.0,0.000234,2]
[328742845,1717759849184,-887.302845,0.000234,2]
[328742846,1717759849194,-887.302845,0.000234,2]
[328742847,1717759849203,-1392.522245,0.000234,2]
[328742848,1717759849214,-1392.522245,0.000234,2]
[328742849,1717759849224,-182.424163,0.000234,2]
[328742850,1717759849234,-182.424163,0.000234,2]
[328742851,1717759849244,-919.179594,0.000234,2]
[328742852,1717759849254,-919.179594,0.000234,2]
[328742853,1717759849264,-759.323495,0.000234,2]
[328742854,1717759849274,-151.0,0.000234,2]
[328742855,1717759849284,-759.323495,0.000234,2]
[328742856,1717759849294,-151.0,0.000234,2]
[328742857,1717759849303,-402.14926,0.000234,2]
[328742858,1717759849313,-402.14926,0.000234,2]
[328742859,1717759849322,-386.979236,0.000234,2]
[328742860,1717759849332,-154.48255,0.000234,2]
[328742861,1717759849342,-386.979236,0.000234,2]
[328742862,1717759849351,-151.0,0.000234,2]
[328742863,1717759849361,-510.984127,0.000234,2]
[328742864,1717759849372,-510.984127,0.000234,2]
[328742865,1717759849384,-702.288297,0.000234,2]
[328742866,1717759849394,-702.288297,0.000234,2]
[328742867,1717759849404,-802.976192,0.000234,2]
[328742868,1717759849414,-802.976192,0.000234,2]
[328742869,1717759849424,-153.66927386,0.00023407,3]
[328742870,1717759849434,-166.666666,0.00023456,2]
[328742871,1717759849444,-151.0,0.00023573,2]
[328742872,1717759849455,-151.0,0.0002358,5]
[328742873,1717759849465,-1038.81508685,0.00023585,2]
[328742874,1717759849475,-270.0,0.000236,2]
[328742875,1717759849486,-160.0,0.000236,2]
[328742876,1717759849496,-171.678656,0.000236,2]
[328742877,1717759849506,-1000.0,0.000236,2]
[328742878,1717759849516,-309.81411154,0.00023645,2]
[328742879,1717759849525,-1828.60767691,0.00023645,2]
[328742880,1717759849535,-368.48158,0.00023645,2]
[328742881,1717759849545,-368.48158,0.00023645,2]
[328742882,1717759849555,-151.0,0.00023645,2]
[328742883,1717759849564,-151.0,0.00023645,2]
[328742884,1717759849573,-151.0,0.00023645,2]
[328742885,1717759849583,-887.302845,0.00023645,2]
[328742886,1717759849592,-887.302845,0.00023645,2]
[328742887,1717759849602,-1392.522245,0.00023645,2]
[328742888,1717759849612,-1392.522245,0.00023645,2]
[328742889,1717759849622,-182.424163,0.00023645,2]
[328742890,1717759849631,-182.424163,0.00023645,2]
[328742891,1717759849641,-919.179594,0.00023645,2]
[328742892,1717759849650,-919.179594,0.00023645,2]
[328742893,1717759849660,-759.323495,0.00023645,2]
[328742894,1717759849670,-291.670516,0.00023645,2]
[328742895,1717759849679,-759.323495,0.00023645,2]
[328742896,1717759849689,-151.0,0.00023645,2]
[328742897,1717759849699,-402.14926,0.00023645,2]
[328742898,1717759849709,-402.14926,0.00023645,2]
[328742899,1717759849718,-386.979236,0.00023645,2]
[328742900,1717759849728,-386.979236,0.00023645,2]
[328742901,1717759849737,-151.0,0.00023645,2]
[328742902,1717759849748,-510.984127,0.00023645,2]
[328742903,1717759849757,-510.984127,0.00023645,2]
[328742904,1717759849767,-702.288297,0.00023645,2]
[328742905,1717759849777,-702.288297,0.00023645,2]
[328742906,1717759849787,-802.976192,0.00023645,2]
[328742907,1717759849796,-802.976192,0.00023645,2]
[328742908,1717759849806,-153.0,0.00023724,2]
[328742909,1717759849815,-153.0,0.00023728,2]
[328742910,1717759849824,-153.0,0.0002373,2]
[328742911,1717759849834,-165.06086642,0.00023841,2]
[328742912,1717759849844,-860.43247946,0.000239,2]
[328742913,1717759849853,-166.666666,0.00023969,2]
[328742914,1717759849863,-1005.37378327,0.00024,2]
[328742915,1717759849873,-31881.11729423,0.00024,2]
[328742916,1717759849893,-285.0,0.00024,2]
[328742917,1717759849904,-151.0,0.00024,2]
[328742918,1717759849914,-368.48158,0.00024,2]
[328742919,1717759849924,-368.48158,0.00024,2]
[328742920,1717759849934,-151.0,0.00024,2]
[328742921,1717759849944,-151.0,0.00024,2]
[328742922,1717759849954,-151.0,0.00024,2]
[328742923,1717759849964,-887.302845,0.00024,2]
[328742924,1717759849974,-887.302845,0.00024,2]
[328742925,1717759849984,-1392.522245,0.00024,2]
[328742926,1717759849995,-1392.522245,0.00024,2]
[328742927,1717759850006,-182.424163,0.00024,2]
[328742928,1717759850015,-182.424163,0.00024,2]
[328742929,1717759850028,-919.179594,0.00024,2]
[328742930,1717759850039,-919.179594,0.00024,2]
[328742931,1717759850049,-759.323495,0.00024,2]
[328742932,1717759850060,-759.323495,0.00024,2]
[328742933,1717759850070,-151.0,0.00024,2]
[328742934,1717759850080,-402.14926,0.00024,2]
[328742935,1717759850090,-402.14926,0.00024,2]
[328742936,1717759850101,-386.979236,0.00024,2]
[328742937,1717759850111,-386.979236,0.00024,2]
[328742938,1717759850121,-151.0,0.00024,2]
[328742939,1717759850130,-510.984127,0.00024,2]
[328742940,1717759850140,-510.984127,0.00024,2]
[328742941,1717759850150,-702.288297,0.00024,2]
[328742942,1717759850160,-702.288297,0.00024,2]
[328742943,1717759850170,-802.976192,0.00024,2]
[328742944,1717759850180,-802.976192,0.00024,2]
[328742945,1717759850190,-151.0,0.00024018,7]
[328742946,1717759850200,-200.0,0.0002411,2]
[328742947,1717759850210,-183.0,0.00024164,2]
[328742948,1717759850220,-150.0,0.00024284,2]
[328742949,1717759850230,-600.0,0.00024319,2]
[328742950,1717759850240,-152.0,0.0002435,8]
[328742951,1717759850253,-592.0,0.000244,2]
[328742952,1717759850263,-151.0,0.00024455,7]
[328742953,1717759850273,-166.666666,0.00024482,2]
[328742954,1717759850284,-166.666666,0.00024493,2]
[328742955,1717759850294,-500.0,0.00024657,2]
[328742956,1717759850304,-340.0,0.00024657,2]
[328742957,1717759850314,-380.0,0.00024658,2]
[328742958,1717759850324,-200.0,0.00024658,15]
[328742959,1717759850334,-200.0,0.00024658,2]
[328742960,1717759850344,-500.0,0.00024658,2]
[328742961,1717759850355,-500.0,0.00024658,2]
[328742962,1717759850365,-500.0,0.00024658,2]
[328742963,1717759850380,-451.08283658,0.00024658,2]
[328742964,1717759850390,-151.0,0.00024693,2]
[328742965,1717759850400,-368.48158,0.00024693,2]
[328742966,1717759850410,-368.48158,0.00024693,2]
[328742967,1717759850422,-368.48158,0.00024693,2]
[328742968,1717759850432,-368.481588,0.00024693,2]
[328742969,1717759850443,-151.0,0.00024693,2]
[328742970,1717759850453,-278.094281,0.00024693,2]
[328742971,1717759850465,-151.0,0.00024693,2]
[328742972,1717759850475,-151.0,0.00024693,2]
[328742973,1717759850485,-299.583162,0.00024693,2]
[328742974,1717759850495,-887.302845,0.00024693,2]
[328742975,1717759850505,-887.302845,0.00024693,2]
[328742976,1717759850515,-887.302845,0.00024693,2]
[328742977,1717759850525,-887.302846,0.00024693,2]
[328742978,1717759850535,-1392.522245,0.00024693,2]
[328742979,1717759850544,-1392.522245,0.00024693,2]
[328742980,1717759850554,-182.424163,0.00024693,2]
[328742981,1717759850564,-182.42417,0.00024693,2]
[328742982,1717759850574,-919.179594,0.00024693,2]
[328742983,1717759850584,-919.179589,0.00024693,2]
[328742984,1717759850594,-759.323495,0.00024693,2]
[328742985,1717759850603,-759.323495,0.00024693,2]
[328742986,1717759850613,-759.323495,0.00024693,2]
[328742987,1717759850623,-759.323489,0.00024693,2]
[328742988,1717759850633,-151.0,0.00024693,2]
[328742989,1717759850642,-151.0,0.00024693,2]
[328742990,1717759850653,-402.14926,0.00024693,2]
[328742991,1717759850662,-402.14926,0.00024693,2]
[328742992,1717759850672,-402.14926,0.00024693,2]
[328742993,1717759850683,-402.14927,0.00024693,2]
[328742994,1717759850694,-386.979236,0.00024693,2]
[328742995,1717759850704,-386.979236,0.00024693,2]
[328742996,1717759850714,-386.979236,0.00024693,2]
[328742997,1717759850723,-386.979243,0.00024693,2]
[328742998,1717759850733,-151.0,0.00024693,2]
[328742999,1717759850743,-151.0,0.00024693,2]
[328743000,1717759850754,-510.984127,0.00024693,2]
[328743001,1717759850764,-510.984127,0.00024693,2]
[328743002,1717759850774,-510.984127,0.00024693,2]
[328743003,1717759850783,-510.984127,0.00024693,2]
[328743004,1717759850792,-702.288297,0.00024693,2]
[328743005,1717759850802,-702.288297,0.00024693,2]
[328743006,1717759850812,-702.288297,0.00024693,2]
[328743007,1717759850822,-702.28829598,0.00024693,2]
[328743008,1717759850832,-802.976192,0.00024693,2]
[328743009,1717759850842,-802.976192,0.00024693,2]
[328743010,1717759850851,-802.976192,0.00024693,2]
[328743011,1717759850862,-802.976201,0.00024693,2]
[328743012,1717759850871,-44561.46179255,0.00024693,2]
[328743013,1717759850881,-181.46788066,0.00024693,2]
[328743014,1717759850891,-738.29347926,0.00024693,2]
[328743015,1717759850901,-151.0,0.00024695,2]
[328743016,1717759850911,-646.99050975,0.00024754,2]
[328743017,1717759850920,-343.91609176,0.00024793,2]
[328743018,1717759850930,-220.28301175,0.00024793,2]
[328743019,1717759850939,-205.84131269,0.00024794,2]
[328743020,1717759850949,-13333.76980835,0.00024794,2]
[328743021,1717759850958,-6809.95935134,0.00024794,2]
[328743022,1717759850968,-272.038806,0.00024795,2]
[328743023,1717759850978,-155.79568427,0.00024893,2]
[328743024,1717759850988,-789.39972493,0.00024893,2]
[328743025,1717759851000,-2961.16348147,0.00024893,2]
[328743026,1717759851010,-155.29725938,0.00024893,2]
[328743027,1717759851019,-151.0,0.00024893,7]
[328743028,1717759851133,-682.61787841,0.00024894,2]
[328743029,1717759851143,-247.07007501,0.00024894,4]
[328743030,1717759851154,-1278.65348969,0.00024894,2]
[328743031,1717759851164,-2641.29398919,0.00024894,2]
[328743032,1717759851174,-154.9690062,0.00024894,2]
[328743033,1717759851184,-181649.76799797,0.00024895,2]
[328743034,1717759851193,-200.91462461,0.00024897,2]
[328743035,1717759851203,-302.50064006,0.00024897,2]
[328743036,1717759851213,-155.14593022,0.00024995,7]
[328743037,1717759851222,-267.22014918,0.00024995,7]
[328743038,1717759851232,-1219.77971889,0.00024996,2]
[328743039,1717759851241,-284.2884529,0.00024996,2]
[328743040,1717759851253,-155.41742051,0.00024996,2]
[328743041,1717759851264,-155.12085344,0.00024998,2]
[328743042,1717759851274,-164.46939342,0.00024998,2]
[328743043,1717759851284,-216.1777469,0.00024998,2]
[328743044,1717759851293,-155.0,0.00024998,2]
[328743045,1717759851303,-155.28801637,0.00024998,2]
[328743046,1717759851313,-155.29503239,0.00024998,2]
[328743047,1717759851323,-156.76771051,0.00024998,2]
[328743048,1717759851332,-155.07245699,0.00024998,2]
[328743049,1717759851342,-164.14485866,0.00024998,2]
[328743050,1717759851351,-156.76406228,0.00024998,2]
[328743051,1717759851360,-190.22639259,0.00024998,2]
[328743052,1717759851371,-2325.66275281,0.00024998,2]
[328743053,1717759851383,-155.39468736,0.00024998,2]
[328743054,1717759851393,-155.02501437,0.00024998,2]
[328743055,1717759851402,-850.33622251,0.00025,4]
[328743056,1717759851412,-300.0,0.00025,2]
[328743057,1717759851422,-491.02834255,0.00025,2]
[328743058,1717759851432,-375.62503674,0.00025,2]
[328743059,1717759851444,-12845.1977116,0.00025,2]
[328743060,1717759851454,-155.03304171,0.00025,2]
[328743061,1717759851464,-155.1786198,0.00025,2]
[328743062,1717759851473,-4107.91279526,0.00025,10]
[328743063,1717759851483,-300.0,0.00025,2]
[328743064,1717759851492,-300.0,0.00025,2]
[328743065,1717759851503,-300.0,0.00025,2]
[328743066,1717759851512,-300.0,0.00025,2]
[328743067,1717759851522,-300.0,0.00025,2]
[328743068,1717759851531,-427.399999,0.00025,2]
[328743069,1717759851541,-401.95220466,0.00025,2]
[328743070,1717759851550,-7369.57739568,0.00025,2]
[328743071,1717759851560,-25063.11770809,0.00025,2]
[328743072,1717759851988,-945.46842875,0.00015,2]
[328743073,1717759851997,-150.0,0.00018947,2]
[328743074,1717759852007,-286.7047816,0.00019176,2]
[328743075,1717759852016,-3741.67437425,0.00025,2]
[328743076,1717759862023,154.95351395,9.999e-05,2]
[328743077,1717759881257,154.95351395,9.999e-05,2]
[328743078,1717759890456,154.95351395,9.999e-05,2]
[328743079,1717759924072,16928.7935336,0.00013977,2]
[328743089,1717760476306,212.9952081,0.00013977,2]
[328743090,1717760517022,154.9690062,9.999e-05,2]
[328743110,1717760542414,1441.62192764,9.999e-05,2]
[328743192,1717760605134,1000.0,0.00025,60]
[328743193,1717760622005,262.138081,0.00013977,2]
[328743263,1717761032525,-545.87563572,0.00014888,2]
[328743266,1717761032607,-895.74629192,0.00014888,2]
[328743268,1717761032618,-2120.4704466,0.00014888,2]
[328743270,1717761032628,-1910.49735366,0.00014889,2]
[328743272,1717761032638,-9585.69744994,0.0001489,2]
[328743274,1717761032648,-3070.8095879,0.00014891,2]
[328743276,1717761032658,-2641.73909648,0.00014891,2]
[328743278,1717761032667,-286.33791892,0.00015,2]
[328743280,1717761032678,-28549.84302775,0.00015,2]
[328743283,1717761032690,-42302.91448736,0.00015,2]
[328743444,1717761038358,-7158.09900991,0.00015,2]
[328743445,1717761038371,-1989.14347498,0.00015,2]
[328743446,1717761038381,-945.46842875,0.00015,2]
[328743447,1717761038391,-190.4326803,0.000156,2]
[328743448,1717761038401,-275.50564015,0.00016613,2]
[328743449,1717761038411,-432.44977582,0.00017898,2]
[328743450,1717761038424,-1915.04999999,0.00017898,2]
[328743451,1717761038436,-1199.8219045,0.00017898,2]
[328743452,1717761038462,-6936.64294205,0.00017898,2]
[328743453,1717761038473,-417.17117144,0.00017967,2]
[328743454,1717761038484,-632.52095723,0.00018067,2]
[328743455,1717761038494,-686.61731928,0.00018068,2]
[328743467,1717761042049,-240.49439102,0.00018068,2]
[328743468,1717761042059,-606.38712645,0.000185,2]
[328743469,1717761042069,-828.69673229,0.00018749,2]
[328743470,1717761042079,-173.35921391,0.00019176,2]
[328743471,1717761042090,-228.35184601,0.00019177,2]
[328743472,1717761042100,-5615.74601872,0.00019177,2]
[328743473,1717761042114,-2730.1582292,0.00019177,2]
[328743474,1717761042123,-20255.08496855,0.00019178,7]
[328743475,1717761042133,-381.03075318,0.00019178,2]
[328743476,1717761042143,-500.0,0.00019178,2]
[328743477,1717761042154,-184.07160823,0.00019178,2]
[328743478,1717761042164,-368.9629646,0.00019178,2]
[328743479,1717761042173,-500.0,0.00019178,2]
[328743480,1717761042184,-500.0,0.00019178,2]
[328743481,1717761042194,-568.14755844,0.00019178,2]
[328743482,1717761042204,-500.0,0.00019178,2]
[328743483,1717761042214,-843.93922988,0.00019178,2]
[328743484,1717761042224,-500.0,0.00019178,2]
[328743485,1717761042234,-500.0,0.00019178,2]
[328743486,1717761042244,-378.6056227,0.00019178,2]
[328743487,1717761042253,-843.93922988,0.00019178,2]
[328743488,1717761042263,-843.93922988,0.00019178,2]
[328743489,1717761042273,-500.0,0.00019178,2]
[328743490,1717761042282,-843.93922988,0.00019178,2]
[328743491,1717761042292,-500.0,0.00019178,2]
[328743492,1717761042301,-843.93922988,0.00019178,2]
[328743493,1717761042311,-500.0,0.00019178,2]
[328743494,1717761042320,-843.93922988,0.00019178,2]
[328743495,1717761042330,-500.0,0.00019178,2]
[328743496,1717761042339,-500.0,0.00019178,2]
[328743497,1717761042349,-843.93922988,0.00019178,2]
[328743498,1717761042358,-500.0,0.00019178,2]
[328743499,1717761042367,-843.93922988,0.00019178,2]
[328743500,1717761042378,-598.24100722,0.00019178,2]
[328743501,1717761042387,-164.98890088,0.00019178,2]
[328743519,1717761043941,-678.950329,0.00019178,2]
[328743520,1717761043951,-500.0,0.00019178,2]
[328743521,1717761043961,-843.93922988,0.00019178,2]
[328743522,1717761043970,-500.0,0.00019178,2]
[328743523,1717761043981,-500.0,0.00019178,2]
[328743524,1717761043991,-843.93922988,0.00019178,2]
[328743525,1717761044002,-843.93922988,0.00019178,2]
[328743526,1717761044012,-500.0,0.00019178,2]
[328743527,1717761044022,-843.93922988,0.00019178,2]
[328743528,1717761044032,-500.0,0.00019178,2]
[328743529,1717761044042,-843.93922988,0.00019178,2]
[328743530,1717761044051,-500.0,0.00019178,2]
[328743531,1717761044060,-500.0,0.00019178,2]
[328743532,1717761044070,-843.93922988,0.00019178,2]
[328743533,1717761044080,-843.93922988,0.00019178,2]
[328743534,1717761044090,-843.93922988,0.00019178,2]
[328743535,1717761044100,-500.0,0.00019178,2]
[328743536,1717761044110,-500.0,0.00019178,2]
[328743537,1717761044119,-843.93922988,0.00019178,2]
[328743538,1717761044129,-500.0,0.00019178,2]
[328743539,1717761044139,-434.28709295,0.00019178,2]
[328743540,1717761044149,-500.0,0.00019178,2]
[328743541,1717761044158,-843.93922988,0.00019178,2]
[328743542,1717761044168,-843.93922988,0.00019178,2]
[328743543,1717761044178,-843.93922988,0.00019178,2]
[328743544,1717761044187,-843.93922988,0.00019178,2]
[328743545,1717761044196,-843.93922988,0.00019178,2]
[328743546,1717761044206,-200.0,0.00019178,2]